Cogmind - Beta 15 @@@ ROGUE MODE // 2025.06.24 @ 23:42:31 Player: Cracklepappy Result: Self-destructed Performance ------------- Evolutions (3) 1500 Regions Visited (15) 3000 Robots Destroyed (332) 1660 Value Destroyed (11496) 11496 Prototype IDs (55) 1100 Alien Tech Used (0) 0 Bonus (4636) 4636 TOTAL SCORE: 23392 Bonus ------- High Alert Combat Kills 1271 Follower Combat Kills 205 Entered Garrisons 600 Used RIF Installer 2500 Aligned with FarCom 300 Friendly Fire -240 Cogmind --------- Core Integrity 388/700 Matter 290/300 Energy 51/100 System Corruption 2% Temperature Cool (0) Movement Flying (29) Location -7/Factory Parts ------- > --- POWER (1) -------- (None) > --- PROPULSION (4) --- Improved Cesium-ion Thruster Improved Cesium-ion Thruster Improved Cesium-ion Thruster > --- UTILITY (4) ------ Transport Network Coupler Improved Hacking Suite Relay Coupler [NC] (5) > --- WEAPON (4) ------- Mini Assault Cannon Remote Datajack Heavy Pick > --- INVENTORY (5) ---- Advanced Heat Sink Mini Assault Cannon Mini Assault Cannon Plasma Cutter Peak State ------------ > --- POWER ------------ Light Fission Core > --- PROPULSION ------- Improved Cesium-ion Thruster Improved Cesium-ion Thruster Improved Cesium-ion Thruster Improved Surge Thruster > --- UTILITY ---------- Improved Hacking Suite Advanced System Shield Relay Coupler [NC] System Purifier > --- WEAPON ----------- Heavy Assault Rifle Enhanced Autogun Enhanced Autogun Heavy Pick > --- INVENTORY -------- Centrium Wheel Advanced Heat Sink Relay Coupler [NC] Remote Datajack Plasma Cutter [Rating: 62] Favorites ----------- Power Cooled Ion Engine Engine Cooled Ion Engine Power Core Reinforced Fission Core Propulsion Light Treads Treads Light Treads Wheel Armored Wheel Flight Unit Improved Cesium-ion Thruster Utility High-capacity Storage Unit Device Advanced Heat Sink Storage High-capacity Storage Unit Processor Transport Network Coupler Hackware Hacking Suite Protection Medium Armor Plating Weapon Heavy Machine Gun Energy Gun AWS/EX-DEC Energy Cannon Particle Cannon Ballistic Gun Heavy Machine Gun Ballistic Cannon Mini Assault Cannon Launcher Grenade Launcher Special Weapon Remote Datajack Impact Weapon Great Maul Slashing Weapon Katana Piercing Weapon Heavy Pick Special Melee Weapon Datajack Build | -11 -10 -10 -9 -9 -9 -8 -8 -8 -8 -8 -8 -8 -7 -7 -7 ------- Run | Yrd Mat Min Mat Min Exi Min Mat Gar Mat Gar Mat Gar Fac Was Fac Slots Evolved 6 | . . . 2 . . . 2 . . . . . 2 . . Power . | . . . . . . . . . . . . . . . . Propulsion 2 | . . . 1 . . . . . . . . . 1 . . Utility 2 | . . . . . . . 1 . . . . . 1 . . Weapon 2 | . . . 1 . . . 1 . . . . . . . . Parts Attached 178 | 7 17 2 25 3 12 2 26 9 8 10 12 19 9 2 15 Power 7 | 1 2 1 . . 1 . 1 . . . . . 1 . . Engine 5 | 1 2 1 . . 1 . . . . . . . . . . Core 2 | . . . . . . . 1 . . . . . 1 . . Reactor . | . . . . . . . . . . . . . . . . Propulsion 57 | 2 3 . 12 1 3 1 9 4 3 3 5 6 3 . 2 Treads 46 | 2 3 . 12 1 3 1 6 4 3 3 5 3 . . . Leg . | . . . . . . . . . . . . . . . . Wheel 4 | . . . . . . . 2 . . . . 2 . . . Hover . | . . . . . . . . . . . . . . . . Flight 7 | . . . . . . . 1 . . . . 1 3 . 2 Utility 46 | 2 5 . 4 . 3 . 6 3 2 1 4 7 3 2 4 Device 14 | 1 . . . . 1 . 3 3 . . 2 . . 1 3 Storage 7 | 1 3 . 1 . 1 . . . 1 . . . . . . Processor 2 | . . . . . . . . . . . . 1 . . 1 Hackware 16 | . . . 1 . . . 2 . 1 1 2 5 3 1 . Protection 7 | . 2 . 2 . 1 . 1 . . . . 1 . . . Artifact . | . . . . . . . . . . . . . . . . Weapon 68 | 2 7 1 9 2 5 1 10 2 3 6 3 6 2 . 9 Energy Gun 9 | 1 1 . . . . . 4 1 . . . 2 . . . Energy Cannon 2 | . . . 1 . 1 . . . . . . . . . . Ballistic Gun 36 | 1 1 . 7 2 3 1 6 1 3 5 . 3 . . 3 Ballistic Cannon 1 | . . . . . . . . . . . . . . . 1 Launcher 6 | . 4 1 . . . . . . . . . . . . 1 Special Weapon 6 | . 1 . . . . . . . . 1 2 1 . . 1 Impact Weapon 2 | . . . . . . . . . . . 1 . . . 1 Slashing Weapon 3 | . . . . . 1 . . . . . . . 1 . 1 Piercing Weapon 2 | . . . . . . . . . . . . . 1 . 1 Special Melee Weapon 1 | . . . 1 . . . . . . . . . . . . Unidentified Prototypes 4 | . 1 . . . . . 2 . . . . 1 . . . Parts Lost 22 | . 1 . 1 . 6 . 4 . . 2 1 . . . 7 Power 2 | . . . . . 1 . . . . . . . . . 1 Propulsion 9 | . . . . . 3 . 3 . . 1 . . . . 2 Utility 5 | . 1 . 1 . 1 . . . . . 1 . . . 1 Weapon 6 | . . . . . 1 . 1 . . 1 . . . . 3 Highest Loss Streak 6 | . 1 . 1 . 6 . 4 . . 2 1 . . . 5 To Critical Strikes 6 | . . . . . 4 . . . . 1 . . . . 1 Average Backups 17 | 4 14 15 19 19 14 19 18 19 19 19 19 19 5 5 4 Power 1 | . 1 1 1 1 . 2 1 1 1 1 1 1 . . . Propulsion 5 | 2 2 2 5 6 3 6 6 7 8 6 7 6 . . . Utility 4 | . 4 7 5 2 2 5 5 5 6 6 6 6 2 2 2 Weapon 4 | . 4 3 6 8 6 5 5 4 3 4 3 4 2 . . Tool/Special . | . . . . . . . . . . . . . . . . Unused Backups 60 | . 7 1 7 1 13 . 7 3 . 3 7 3 4 1 3 Power 7 | . 1 . . . 3 . . 2 . . . . 1 . . Propulsion 17 | . 4 . 1 . 1 . 4 . . 1 4 1 . . 1 Utility 25 | . 1 . 3 1 9 . 1 . . 2 3 2 3 . . Weapon 11 | . 1 1 3 . . . 2 1 . . . . . 1 2 Tool/Special . | . . . . . . . . . . . . . . . . Average Slot Usage (%) 98 | . 99 100 99 100 99 100 98 91 99 93 99 95 99 100 97 Engine 5 | . 14 14 11 11 11 11 1 . . . . . . . . Core 4 | . . . . . . . 6 9 9 9 9 9 6 7 6 Treads 27 | . 28 28 32 33 33 33 24 27 27 26 27 23 . . . Flight 1 | . . . . . . . . . . . . . 28 30 29 Device 6 | . 1 . . . . . 5 16 11 8 12 15 6 7 5 Storage 9 | . 14 14 11 11 12 11 9 9 9 9 9 9 . . . Hackware 3 | . . . . . . . 4 . 6 9 5 2 22 23 21 Protection 5 | . 12 14 10 11 9 11 7 1 . . . . . . . Energy Gun 1 | . 3 . . . . . 1 7 . 5 . . . . . Ballistic Gun 26 | . 14 . 30 32 29 32 34 16 34 20 33 25 14 23 21 Launcher 1 | . 9 28 . . . . . . . . . . . . . Peak Build Rating 62 | 7 12 13 22 22 33 30 44 54 53 56 49 51 60 59 62 Average Rating 33 | 5 11 12 20 21 20 29 38 50 42 48 45 45 57 58 56 On Entrance 32 | . 7 12 13 22 21 28 29 41 53 39 44 48 40 57 59 Naked Turns . | . . . . . . . . . . . . . . . . Heaviest Build 87 | 11 41 42 64 65 68 62 83 86 75 82 86 87 73 20 23 Greatest Support 69 | 40 40 40 60 60 66 66 63 63 60 60 69 69 24 22 24 Greatest Overweight (x) 7 | . 1 1 1 1 1 . 7 1 1 1 1 5 3 . 3 Average Overweight (x) . | . . 1 . 1 . . 2 1 1 1 1 1 . . . Largest Inventory Capacity 20 | 8 15 15 20 20 20 20 20 20 20 20 20 20 20 5 5 Average Capacity 18 | 6 14 15 19 20 20 20 20 20 20 20 20 20 5 5 5 Most Carried 20 | 8 15 15 20 20 20 20 20 20 20 20 20 20 20 5 5 Average Carried 17 | 4 14 14 19 20 14 19 19 19 19 19 19 19 5 4 4 Final Capacity 20 | 8 15 15 20 20 20 20 20 20 20 20 20 20 5 5 5 Final Carried 20 | 8 15 15 20 20 20 20 20 20 20 20 20 20 5 5 4 Class Distribution -------------------- 18% | Scavenger-Tank 16% | Scavenger-Gunner 16% | Tank 15% | Mutant 14% | Commander-Tank 4% | Bomber 3% | Scavenger-Bomber Dominant Class ---------------- Mutant | -10/Materials Mutant | -10/Mines Bomber | -9/Materials Tank | -9/Mines Tank | -9/Exiles Scavenger-Tank | -8/Mines Scavenger-Tank | -8/Materials Scavenger-Tank | -8/Garrison Scavenger-Gunner | -8/Materials Scavenger-Gunner | -8/Garrison Scavenger-Gunner | -8/Materials Commander-Tank | -8/Garrison Commander-Sprinter | -7/Factory Hacker-Sprinter | -7/Waste Hacker-Sprinter | -7/Factory Resources | -11 -10 -10 -9 -9 -9 -8 -8 -8 -8 -8 -8 -8 -7 -7 -7 ----------- Run | Yrd Mat Min Mat Min Exi Min Mat Gar Mat Gar Mat Gar Fac Was Fac Matter Collected 11538 | 276 998 120 1180 241 996 456 1366 575 305 866 1216 1667 314 . 962 Remotely . | . . . . . . . . . . . . . . . . Salvage Created 13215 | 127 1107 70 1894 190 580 474 1840 1466 369 1326 959 1725 150 . 938 Parts 832 | 9 84 11 138 14 70 21 115 62 18 72 55 108 5 . 50 Haulers Intercepted 18 | . 2 . 6 . . . 5 . . . 1 . 1 . 3 Recyclers Shooed 10 | . 2 . 4 1 . . 1 . . . 1 . . . 1 Parts Field Recycled . | . . . . . . . . . . . . . . . . Retrieved Matter . | . . . . . . . . . . . . . . . . Parts Self-Destructed . | . . . . . . . . . . . . . . . . Prevented . | . . . . . . . . . . . . . . . . Kills | -11 -10 -10 -9 -9 -9 -8 -8 -8 -8 -8 -8 -8 -7 -7 -7 ------- Run | Yrd Mat Min Mat Min Exi Min Mat Gar Mat Gar Mat Gar Fac Was Fac Combat Hostiles Destroyed 248 | . 18 8 31 10 6 9 36 29 6 28 16 36 1 . 14 Melee 5 | . . . . . . . . 1 1 . . . 1 . 2 Guns 205 | . 2 . 27 7 1 7 36 28 5 28 16 36 . . 12 Cannons 3 | . . . 3 . . . . . . . . . . . . AOE 34 | . 16 8 . 3 5 2 . . . . . . . . . Classes Destroyed 19 | 2 7 . 2 1 2 1 . 2 . 1 . 1 . . . Worker 17 | . 8 . 2 . . . 3 . . . 2 . . . 2 Builder 10 | . 3 . 4 1 . . 2 . . . . . . . . Tunneler 5 | 2 1 . . 1 . . 1 . . . . . . . . Hauler 18 | . 2 . 6 . . . 5 . . . 1 . 1 . 3 Recycler 16 | 1 5 . 3 . . 1 1 . 1 . 1 . 1 . 2 Operator 5 | . 2 . 2 . . . 1 . . . . . . . . Turret 1 | . . . . . 1 . . . . . . . . . . Watcher 13 | . 3 . 5 . . . 2 . 1 . 1 1 . . . Swarmer 63 | . 6 6 11 2 . . 15 4 . 5 . 7 . . 7 Cutter 3 | . . . . . . . . . . . . 3 . . . Grunt 88 | . 12 2 9 . . 5 12 17 3 10 8 7 1 . 2 Brawler 4 | . . . . . . . . 2 . 1 . 1 . . . Duelist 6 | . . . 1 . . 1 . 1 1 . 1 1 . . . Sentry 43 | . . . 10 1 . . 8 4 2 5 7 6 . . . Specialist 6 | . . . . . . . . 1 . 4 . . . . 1 Hunter 5 | . . . . . . 3 1 . . . . 1 . . . Programmer 17 | . . . . . . . . . . 4 . 9 . . 4 Zionite 8 | . . . . . 8 . . . . . . . . . . Assembled 12 | . . . . 7 5 . . . . . . . . . . Thug 1 | . . . . . . . . . . . . 1 . . . Best Kill Streak 15 | 2 5 3 5 3 7 3 15 4 3 4 4 6 1 . 5 Combat Bots Only 13 | . 5 3 4 3 5 3 13 4 3 4 3 5 1 . 5 Max Kills in Single Turn 3 | 1 3 3 2 3 2 1 2 1 1 2 2 2 1 . 1 Gunslinging 1 | . . . . . . . 1 . . . . 1 . . . Exploded 3 | . 3 3 . 3 2 1 . . . . . . . . . Melee 1 | . . . . . . . . 1 1 . . . 1 . 1 Uniques/NPCs Destroyed 4 | . . . . . 4 . . . . . . . . . . 8R-AWN (-9/Exiles) EX-DEC (-9/Exiles) EX-HEX (-9/Exiles) EX-BIN (-9/Exiles) Combat | -11 -10 -10 -9 -9 -9 -8 -8 -8 -8 -8 -8 -8 -7 -7 -7 -------- Run | Yrd Mat Min Mat Min Exi Min Mat Gar Mat Gar Mat Gar Fac Was Fac Hostile Shots Fired 1033 | . 44 15 129 17 69 51 140 41 24 107 42 121 2 . 231 Missed 336 | . 17 7 29 5 16 21 27 11 9 28 12 23 . . 131 Hits 697 | . 27 8 100 12 53 30 113 30 15 79 30 98 2 . 100 Melee 18 | . . . 3 3 1 3 . 3 . . . 5 . . . Projectile 679 | . 27 8 97 9 52 27 113 27 15 79 30 93 2 . 100 AOE 3 | . . . . . . 1 . . . . . 2 . . . Critical Strikes 53 | . . . 3 2 24 1 3 2 . 7 2 6 . . 3 Part Disruptions 1 | . . . . . . . . . . . . 1 . . . Damage Taken 10216 | . 622 121 1260 210 1019 569 1533 477 229 1283 418 1061 45 . 1369 Core 1140 | . 63 44 71 34 110 97 94 40 44 114 32 85 . . 312 Absorbed by Shields 557 | . . . . . 74 . . . . . 28 404 . . 51 Regen/Repaired (Parts) 1563 | . 82 . 258 . . . 81 . . 251 240 498 . . 153 Core Remaining (%) 51 | 100 . 57 . . . 22 . . . . . 25 . . . Volleys Fired 750 | 6 95 5 111 19 84 36 84 32 12 55 51 98 13 . 49 Largest 4 | 2 2 2 3 3 3 3 4 4 4 4 4 4 1 . 4 Hottest 226 | 60 60 60 111 69 120 74 226 102 98 120 120 120 5 . 101 Shots Fired 2178 | 12 190 10 322 51 208 102 334 130 48 217 143 267 13 . 131 Gun 2000 | 12 160 . 290 48 192 99 334 130 48 215 122 232 . . 118 Cannon 42 | . . . 32 . 10 . . . . . . . . . . Launcher 52 | . 30 10 . 3 6 3 . . . . . . . . . Special 84 | . . . . . . . . . . 2 21 35 13 . 13 Kinetic 1845 | 6 132 . 290 48 192 99 313 81 48 164 122 232 . . 118 Thermal 119 | 6 21 . 32 . 10 . 21 . . . . 29 . . . Explosive 52 | . 30 10 . 3 6 3 . . . . . . . . . Electromagnetic 107 | . 7 . . . . . . 49 . 51 . . . . . Robot Hit Streak 27 | 7 8 4 22 10 12 10 23 22 19 27 14 12 8 . 15 Robot Miss Streak 7 | 1 7 . 5 3 5 4 4 2 3 6 3 3 1 . 5 Penetration Max 1 | . . . . . . . 1 1 . . . . . . . Secondary Targets 36 | . . . 3 . . . 8 2 1 6 . 14 . . 2 Max Gunslinging Chain 2 | . . . 1 . . . 2 1 1 1 . 1 . . 1 Autonomous 100 | . . . . . . . . 49 . 51 . . . . . Shots Hit Robots 1388 | 10 102 3 194 27 132 55 207 96 30 158 83 180 17 . 94 Core Hits 571 | 6 71 11 74 18 43 23 81 56 11 48 31 64 3 . 31 Critical Kills 5 | . . . 1 1 . . 1 1 . . 1 . . . . Critical Parts Destroyed 10 | . . . 1 . 1 1 2 2 . 1 . 1 . . 1 Critical Strikes 23 | . . . 2 1 2 1 3 5 . 2 1 1 1 . 4 Meltdown 1 | . . . 1 . . . . . . . . . . . . Destroy 13 | . . . 1 1 1 1 3 3 . 1 1 1 . . . Corrupt 2 | . . . . . . . . 1 . 1 . . . . . Smash 1 | . . . . . . . . . . . . . . . 1 Sever 2 | . . . . . 1 . . 1 . . . . . . . Impale 4 | . . . . . . . . . . . . . 1 . 3 Melee Attacks 155 | . . . . . 12 . . 21 2 12 1 31 17 . 59 Impact 11 | . . . . . . . . . . . 1 7 . . 3 Slashing 67 | . . . . . 8 . . 21 2 12 . 24 . . . Piercing 73 | . . . . . . . . . . . . . 17 . 56 Sneak Attacks 18 | . . . . . 4 . . 1 . . . . 5 . 8 Combat Hostiles 4 | . . . . . . . . 1 . . . . 3 . . Follow-up Attacks 2 | . . . . . . . . . . . . . . . 2 Damage Inflicted 29102 | 96 2226 368 3151 590 2946 1011 3558 2210 528 3250 1697 4675 431 . 2365 Guns 22192 | 96 892 . 2628 433 1831 779 3532 2079 504 3250 1690 3275 . . 1203 Cannons 824 | . . . 470 . 354 . . . . . . . . . . Explosions 2370 | . 1322 368 . 141 307 232 . . . . . . . . . Melee 3272 | . . . . . 454 . . 131 . . . 1094 431 . 1162 Ramming 152 | . 12 . 53 16 . . 26 . 24 . 7 14 . . . Kinetic 19502 | 40 671 . 2628 433 1831 779 3414 835 504 2199 1690 3275 . . 1203 Thermal 1469 | 56 179 . 470 . 354 . 118 . . . . 292 . . . Explosive 2357 | . 1309 368 . 141 307 232 . . . . . . . . . Electromagnetic 2350 | . 55 . . . . . . 1244 . 1051 . . . . . Impact 56 | . . . . . . . . . . . . . . . 56 Slashing 1679 | . . . . . 454 . . 131 . . . 1094 . . . Piercing 1537 | . . . . . . . . . . . . . 431 . 1106 Highest Corruption 11 | . . . . . . . . . . 3 4 9 1 11 11 Average Corruption 4 | . . . . . . . . . . 2 3 8 1 7 3 Corruption Purged 11 | . . . . . . . . . . . . . . . 11 Corruption Blocked . | . . . . . . . . . . . . . . . . Effects 322 | . . . . . . . . . . 26 103 171 1 2 19 Message Errors 75 | . . . . . . . . . . 4 25 44 . . 2 Matter Fused 75 | . . . . . . . . . . 5 24 37 . 1 8 Heat Flow Errors 51 | . . . . . . . . . . 3 18 27 . . 3 Energy Discharges 36 | . . . . . . . . . . 2 6 24 . . 4 Parts Rejected 1 | . . . . . . . . . . 1 . . . . . Parts Fused 2 | . . . . . . . . . . . 2 . . . . Data Loss (minor) 33 | . . . . . . . . . . 5 13 14 1 . . Data Loss (major) 23 | . . . . . . . . . . 2 8 13 . . . Misfires 10 | . . . . . . . . . . 2 3 4 . . 1 Alerts 10 | . . . . . . . . . . 1 3 5 . . 1 Misdirections 1 | . . . . . . . . . . . . . . 1 . Weapon Failures 5 | . . . . . . . . . . 1 1 3 . . . Overload Shots . | . . . . . . . . . . . . . . . . Overflow Damage 519 | . 29 . . . 78 . . . . . . 125 94 . 193 Projectiles . | . . . . . . . . . . . . . . . . Explosions 53 | . 29 . . . 24 . . . . . . . . . . Melee 466 | . . . . . 54 . . . . . . 125 94 . 193 Knockbacks 1 | . . . . 1 . . . . . . . . . . . Impact 1 | . . . . 1 . . . . . . . . . . . Kinetic . | . . . . . . . . . . . . . . . . Secondary . | . . . . . . . . . . . . . . . . Self-Inflicted Damage 416 | . 288 47 . 10 71 . . . . . . . . . . Shots 16 | . 11 2 . 1 2 . . . . . . . . . . Rammed 18 | . 1 . 6 3 . . 5 . 1 . 1 1 . . . Targets Rammed 24 | . 1 . 8 4 . . 6 . 3 . 1 1 . . . Kicked . | . . . . . . . . . . . . . . . . Crushed 6 | . . . 2 1 . . 1 . 2 . . . . . . Highest Temperature 443 | 40 82 3 443 11 420 159 342 77 84 243 312 327 . . 310 Average Temperature 63 | 17 12 2 56 4 102 46 98 27 27 62 83 82 . . 68 Received Heat Transfer 2353 | . 150 6 375 27 . 138 495 216 81 342 211 168 18 . 126 Effects 10 | . . . 2 . . . 4 . . . . 4 . . . Shutdowns 2 | . . . 1 . . . 1 . . . . . . . . Energy Bleed 2 | . . . . . . . . . . . . 2 . . . Interference 5 | . . . . . . . 3 . . . . 2 . . . Damage (minor) 1 | . . . 1 . . . . . . . . . . . . Siege Activations . | . . . . . . . . . . . . . . . . Martial Activations . | . . . . . . . . . . . . . . . . Shielding Activations . | . . . . . . . . . . . . . . . . Robots Disrupted . | . . . . . . . . . . . . . . . . Combat Hostiles . | . . . . . . . . . . . . . . . . Robots Corrupted . | . . . . . . . . . . . . . . . . Combat Hostiles . | . . . . . . . . . . . . . . . . Parts Fried 11 | . . . . . . . . 8 . 3 . . . . . Impact Corruptions 1 | . . . . . . . . . . . . . . . 1 Robots Melted 1 | . . . 1 . . . . . . . . . . . . Combat Hostiles 1 | . . . 1 . . . . . . . . . . . . Parts Melted 6 | . 1 . 1 . . . . . . . . 3 . . 1 Heat Transferred 3422 | 125 425 . 851 . 800 . 222 . . . . 999 . . . Parts Sabotaged . | . . . . . . . . . . . . . . . . Parts Stolen . | . . . . . . . . . . . . . . . . Parts Stripped . | . . . . . . . . . . . . . . . . Power Chain Reactions . | . . . . . . . . . . . . . . . . Alert | -11 -10 -10 -9 -9 -9 -8 -8 -8 -8 -8 -8 -8 -7 -7 -7 ------- Run | Yrd Mat Min Mat Min Exi Min Mat Gar Mat Gar Mat Gar Fac Was Fac Maximum Alert Level 5 | . 1 . 1 . . . 2 4 3 3 2 5 4 1 1 Low Security (%) 57 | 100 60 100 69 100 . 100 30 . 37 10 86 22 . 50 94 Level 1 18 | . 39 . 30 . . . 69 8 15 11 9 10 . 50 5 Level 2 7 | . . . . . . . . 25 23 41 4 8 23 . . Level 3 6 | . . . . . . . . 26 24 36 . 8 30 . . Level 4 5 | . . . . . . . . 39 . . . 14 46 . . Level 5 5 | . . . . . . . . . . . . 35 . . . High Security . | . . . . . . . . . . . . . . . . Max Security . | . . . . . . . . . . . . . . . . Peak Influence 2546 | 10 262 182 257 107 . 80 401 1485 736 913 444 2546 1297 205 251 Initial 1297 | . . 100 . 94 . . . 258 723 143 444 5 1297 205 129 Average 371 | 1 167 50 137 9 . 14 235 908 427 567 102 1121 902 199 70 Influence Increases 10348 | 15 836 229 1056 106 . 260 1096 1227 206 810 424 2661 369 . 1053 Destroy 0b10 Robot/C 4375 | . 360 160 620 60 . 180 720 565 120 510 240 540 30 . 270 Destroy 0b10 Robot/NC 419 | 15 120 . 110 10 . 5 75 . 8 . 20 16 8 . 32 Destroy Leader 872 | . 80 30 202 10 . 50 204 20 50 24 92 40 2 . 68 Allied During Kill 59 | . . . . 3 . . . . 7 40 . 7 . . 2 Successful Hack 314 | . 51 . 58 . . . 46 14 6 14 7 . 34 . 84 Select Force Hacks 60 | . 30 . . . . . . . . . . . . . 30 Disable Machine 423 | . 75 . 30 . . 15 15 . 12 12 36 36 168 . 24 Anti-Garrison Action 2690 | . . . . . . . . 550 . 150 . 1990 . . . Destroy Structure 401 | . 120 39 6 23 . 10 6 63 3 36 17 32 7 . 39 Partial Spotted 120 | . . . . . . . . . . . . . 36 . 84 Lose Combat Pursuer 615 | . . . 30 . . . 30 15 . 24 12 . 84 . 420 Influence Decreases 10237 | 15 577 488 812 350 . 260 699 139 1470 118 1329 198 2254 401 1127 Entered New Map 3371 | . . 159 . 150 . . . 139 762 78 469 3 1174 381 56 Time Decay 4405 | 15 567 329 652 200 . 260 509 . 238 . 766 . 350 20 499 Lost Part 160 | . 10 . 10 . . . 40 . . 20 10 . . . 70 Lost Ally 338 | . . . . . . . . . 20 20 10 45 130 . 113 Purge Threat 1963 | . . . 150 . . . 150 . 450 . 74 150 600 . 389 Squads Dispatched 40 | . 4 1 3 . . . 8 . 3 . 3 . 5 . 13 Investigation 16 | . 3 1 . . . . 2 . 1 . 1 . 2 . 6 Extermination 6 | . . . . . . . . . . . . . 2 . 4 Reinforcement 10 | . 1 . 3 . . . 1 . 1 . 1 . . . 3 Assault 1 | . . . . . . . . . . . . . 1 . . Garrison 7 | . . . . . . . 5 . 1 . 1 . . . . Intercept . | . . . . . . . . . . . . . . . . Searches Triggered . | . . . . . . . . . . . . . . . . Construction Impeded . | . . . . . . . . . . . . . . . . Haulers Reinforced 2 | . . . . . . . . . . . . . . . 2 Active Scanning Responses . | . . . . . . . . . . . . . . . . Cargo Convoy Interrupts 1 | . . . . . . . . . . . . . . . 1 Stealth | -11 -10 -10 -9 -9 -9 -8 -8 -8 -8 -8 -8 -8 -7 -7 -7 --------- Run | Yrd Mat Min Mat Min Exi Min Mat Gar Mat Gar Mat Gar Fac Was Fac Distress Signals 17 | . 1 . 2 . . . 4 . 1 . 3 1 . . 5 Communications Jammed . | . . . . . . . . . . . . . . . . Distress Signals . | . . . . . . . . . . . . . . . . Times Spotted 427 | . 33 7 56 15 14 9 53 31 11 39 18 38 20 6 77 Peak Tracking Total 13 | . 6 3 6 4 10 3 11 3 7 4 3 4 5 6 13 Tactical Retreats 31 | . . . 1 1 3 . 2 1 . 2 1 . 4 . 16 Traps | -11 -10 -10 -9 -9 -9 -8 -8 -8 -8 -8 -8 -8 -7 -7 -7 ------- Run | Yrd Mat Min Mat Min Exi Min Mat Gar Mat Gar Mat Gar Fac Was Fac Traps Triggered 33 | . 3 . 3 . 1 . 1 8 . 3 1 8 2 . 3 Indirectly . | . . . . . . . . . . . . . . . . Trap Hack Attempts 27 | . . . 27 . . . . . . . . . . . . Triggered . | . . . . . . . . . . . . . . . . Disarmed 1 | . . . 1 . . . . . . . . . . . . Reprogrammed 2 | . . . 2 . . . . . . . . . . . . Reused . | . . . . . . . . . . . . . . . . Traps Extracted . | . . . . . . . . . . . . . . . . Installed 1 | . . . . . 1 . . . . . . . . . . Triggered . | . . . . . . . . . . . . . . . . Most Traps Carried 1 | . . . . 1 1 . . . . . . . . . . Machines | -11 -10 -10 -9 -9 -9 -8 -8 -8 -8 -8 -8 -8 -7 -7 -7 ---------- Run | Yrd Mat Min Mat Min Exi Min Mat Gar Mat Gar Mat Gar Fac Was Fac Machines Disabled 54 | . 5 . 2 . 10 1 1 4 1 3 3 8 14 . 2 Max in Single Turn 2 | . 2 . 1 . 2 1 1 1 1 1 1 1 1 . 1 Garrison Access 1 | . . . . . . . . . . . . . . . 1 Garrison Relay 8 | . . . . . . . . 4 . . . 4 . . . Phase Generator 1 | . . . . . . . . . . . . 1 . . . Machines Repaired . | . . . . . . . . . . . . . . . . Machines Dismantled 17 | . . . . . . . . . . . 2 2 13 . . Machines Sabotaged . | . . . . . . . . . . . . . . . . Overloaded Fab Kills . | . . . . . . . . . . . . . . . . Hacking | -11 -10 -10 -9 -9 -9 -8 -8 -8 -8 -8 -8 -8 -7 -7 -7 --------- Run | Yrd Mat Min Mat Min Exi Min Mat Gar Mat Gar Mat Gar Fac Was Fac Machines Accessed 101 | . 9 1 12 . 2 . 11 2 2 4 12 2 14 . 30 Terminals 62 | . 7 . 8 . . . 7 2 1 4 8 2 9 . 14 Fabricators 5 | . . . . . . . . . . . . . 1 . 4 Repair Stations 10 | . 1 . 2 . . . 1 . . . 1 . 1 . 4 Recycling Units 1 | . 1 . . . . . . . . . . . . . . Scanalyzers 12 | . . . 2 . . . 2 . . . 2 . 2 . 4 Garrison Access 8 | . . . . . . . 1 . 1 . 1 . 1 . 4 Total Hacks 275 | . 23 1 47 . 2 . 27 3 6 9 26 3 36 . 92 Successful 142 | . 15 1 27 . 2 . 17 2 5 3 14 1 16 . 39 Failed 132 | . 8 . 19 . . . 10 1 1 6 12 2 20 . 53 Catastrophic 32 | . 3 . 2 . . . 5 . 1 1 5 1 6 . 8 Database Lockouts 1 | . . . 1 . . . . . . . . . . . . Manual 125 | . 16 . 18 . 1 . 6 . 5 . 9 3 20 . 47 Terminals 181 | . 19 . 33 . . . 15 3 4 9 17 3 25 . 53 Fabricators 12 | . . . . . . . . . . . . . 5 . 7 Repair Stations 24 | . 2 . 8 . . . 4 . . . 1 . 1 . 8 Recycling Units 2 | . 2 . . . . . . . . . . . . . . Scanalyzers 32 | . . . 6 . . . 7 . . . 5 . 2 . 12 Garrison Access 21 | . . . . . . . 1 . 2 . 3 . 3 . 12 Terminal Hacks 68 | . 4 1 11 . 2 . 7 2 3 3 7 1 10 . 17 Record 1 | . . . . . 1 . . . . . . . . . . Part Schematic 5 | . . . 3 . . . . . . . . . 1 . 1 Robot Schematic 3 | . 2 . . . . . . . . . . . . . 1 Robot Analysis 3 | . . . . . . . 1 . . . . . . . 2 Prototype ID Bank 7 | . 1 . 2 . . . . . . . . . 1 . 3 Open Door 2 | . . 1 . . . . . . . 1 . . . . . Branch Access Points 2 | . . . 1 . . . . . . . . . . . 1 Emergency Access Points 2 | . . . . . . . . . . 1 . . 1 . . Terminal Index 2 | . . . . . . . . . . . . . 1 . 1 Scanalyzer Index 3 | . . . . . . . 1 . . . . . 1 . 1 Unreport Threat 12 | . . . 1 . . . 1 . 3 . 1 1 3 . 2 Locate Traps 10 | . 1 . 1 . . . 3 . . . 3 . 1 . 1 Surveillance Status 1 | . . . 1 . . . . . . . . . . . . Transport Status 1 | . . . 1 . . . . . . . . . . . . Recall Reinforcements 1 | . . . . . . . . . . . 1 . . . . Hauler Manifests 6 | . . . . . . . 1 . . . 1 . 1 . 3 Registered Components 2 | . . . . . . . . . . . 1 . . . 1 Zone Layout 1 | . . . 1 . . . . . . . . . . . . Garrison Registry 2 | . . . . . . . . 1 . 1 . . . . . Patrol Navigation 1 | . . . . . . . . 1 . . . . . . . Proto ID Catalog 1 | . . . . . 1 . . . . . . . . . . Fabricator Hacks 3 | . . . . . . . . . . . . . 1 . 2 Network Status 3 | . . . . . . . . . . . . . 1 . 2 Repair Station Hacks 14 | . 2 . 6 . . . 4 . . . . . . . 2 Scan Component 7 | . 1 . 3 . . . 2 . . . . . . . 1 Repair 7 | . 1 . 3 . . . 2 . . . . . . . 1 Recycling Unit Hacks 1 | . 1 . . . . . . . . . . . . . . Retrieve Components 1 | . 1 . . . . . . . . . . . . . . Scanalyzer 18 | . . . 5 . . . 5 . . . 4 . . . 4 Insert Component 10 | . . . 3 . . . 3 . . . 2 . . . 2 Analyze 8 | . . . 2 . . . 2 . . . 2 . . . 2 Garrison Access Hacks 8 | . . . . . . . 1 . 1 . 2 . . . 4 Unlock Access 6 | . . . . . . . 1 . 1 . 1 . . . 3 Seal Access 1 | . . . . . . . . . . . . . . . 1 Coupler Status 1 | . . . . . . . . . . . 1 . . . . Unauthorized Hacks 30 | . 8 . 5 . . . . . 1 . 1 . 5 . 10 Terminals 17 | . 7 . 5 . . . . . . . . . 2 . 3 Assimilate 6 | . 1 . . . . . . . . . . . 2 . 3 Operators 1 | . 1 . . . . . . . . . . . . . . Skim 10 | . 5 . 5 . . . . . . . . . . . . Fabricators 3 | . . . . . . . . . . . . . 1 . 2 Haulers 1 | . . . . . . . . . . . . . 1 . . Download 2 | . . . . . . . . . . . . . . . 2 Repair Stations 4 | . . . . . . . . . . . 1 . . . 3 Mechanics 2 | . . . . . . . . . . . 1 . . . 1 Patch 2 | . . . . . . . . . . . . . . . 2 Recycling Units 1 | . 1 . . . . . . . . . . . . . . Tunnel 1 | . 1 . . . . . . . . . . . . . . Scanalyzers . | . . . . . . . . . . . . . . . . Garrison Access 5 | . . . . . . . . . 1 . . . 2 . 2 Reprogram 3 | . . . . . . . . . 1 . . . 1 . 1 Watchers 2 | . . . . . . . . . . . . . 1 . 1 Data Cores Recovered . | . . . . . . . . . . . . . . . . Used . | . . . . . . . . . . . . . . . . Hacking Detections 84 | . 7 . 12 . . . 10 1 2 4 12 2 13 . 21 Full Trace Events 5 | . . . 1 . . . 2 . . . 1 . 1 . . Feedback Events 1 | . . . . . . . . . . . . . 1 . . Corruption 1 | . . . . . . . . . . . . . 1 . . Feedback Blocked . | . . . . . . . . . . . . . . . . Robot Schematics Acquired 4 | . 2 . . . . . . . . . . . . . 2 Robots Built . | . . . . . . . . . . . . . . . . Authchips . | . . . . . . . . . . . . . . . . Time . | . . . . . . . . . . . . . . . . Total Robot Build Rating . | . . . . . . . . . . . . . . . . Part Schematics Acquired 11 | . . . 4 . . . 1 . . . 1 . 1 . 4 Parts Built . | . . . . . . . . . . . . . . . . Authchips . | . . . . . . . . . . . . . . . . Time . | . . . . . . . . . . . . . . . . Total Part Build Rating . | . . . . . . . . . . . . . . . . Parts Repaired 7 | . 1 . 3 . . . 2 . . . . . . . 1 Time 354 | . 32 . 115 . . . 157 . . . . . . . 50 Parts Recycled . | . . . . . . . . . . . . . . . . Recycled Matter . | . . . . . . . . . . . . . . . . Retrieved Matter . | . . . . . . . . . . . . . . . . Retrieved Components 9 | . 9 . . . . . . . . . . . . . . Parts Scanalyzed 6 | . . . 2 . . . 2 . . . . . . . 2 Part Schematics Acquired 5 | . . . 1 . . . 1 . . . 1 . . . 2 Parts Damaged . | . . . . . . . . . . . . . . . . Bothacking | -11 -10 -10 -9 -9 -9 -8 -8 -8 -8 -8 -8 -8 -7 -7 -7 ------------ Run | Yrd Mat Min Mat Min Exi Min Mat Gar Mat Gar Mat Gar Fac Was Fac Used RIF Installer 5 | . . . . . . . . 2 . 1 . 2 . . . Hotswap 1 | . . . . . . . . . . . . 1 . . . Threat Obfuscator 1 | . . . . . . . . 1 . . . . . . . Patrol Navigation 1 | . . . . . . . . . . . . 1 . . . Autooverride 1 | . . . . . . . . . . 1 . . . . . Robots Hacked 29 | . . . . . 4 . . . . 1 9 1 8 . 6 Non-combat 24 | . . . . . 2 . . . . 1 9 1 5 . 6 Combat 5 | . . . . . 2 . . . . . . . 3 . . Robot Hacks Applied 33 | . . . . . 4 . . . . 1 9 3 10 . 6 parse_system 5 | . . . . . 4 . . . . . . . 1 . . no_distress 1 | . . . . . . . . . . . . . 1 . . find_chute 2 | . . . . . . . . . . . . . 2 . . drop_inventory 1 | . . . . . . . . . . . . . . . 1 purge_threat 2 | . . . . . . . . . . . . . 1 . 1 reboot_system 1 | . . . . . . . . . . . . . 1 . . overwrite_iff 3 | . . . . . . . . . . . . . 3 . . formatsys_low 15 | . . . . . . . . . . 1 8 3 1 . 2 formatsys_high 3 | . . . . . . . . . . . 1 . . . 2 Relay Couplers Released 31 | . . . . . . . . 15 . . . 16 . . . Machine Destruction 31 | . . . . . . . . 15 . . . 16 . . . Attached 9 | . . . . . . . . . . 1 2 3 3 . . Fabnet Peak Effective % . | . . . . . . . . . . . . . . . . Robots Rewired . | . . . . . . . . . . . . . . . . Allies Hacked 3 | . . . . . . . . . . . . 1 . . 2 Hacks Repelled . | . . . . . . . . . . . . . . . . Allies | -11 -10 -10 -9 -9 -9 -8 -8 -8 -8 -8 -8 -8 -7 -7 -7 -------- Run | Yrd Mat Min Mat Min Exi Min Mat Gar Mat Gar Mat Gar Fac Was Fac Total Allies 36 | . . . . 4 . . . . 2 2 9 2 7 . 10 Largest Group 9 | . . . . 3 3 . . . 2 2 9 9 8 . 4 Highest-Rated Group 182 | . . . . 40 40 . . . 30 40 102 99 139 . 182 Highest-Rated Ally 108 | . . . . 31 16 . . . 15 25 23 31 29 . 108 Total Orders 167 | . . . . . 3 . . . . 5 29 116 12 . 2 STAY 100 | . . . . . 3 . . . . 2 20 70 5 . . ROAM 1 | . . . . . . . . . . . . . . . 1 FOLLOW 22 | . . . . . . . . . . . 3 15 4 . . AID 20 | . . . . . . . . . . 3 6 8 2 . 1 DROP 6 | . . . . . . . . . . . . 6 . . . PICKUP 12 | . . . . . . . . . . . . 12 . . . COLLECT 6 | . . . . . . . . . . . . 5 1 . . Ally Attacks 117 | . . . . 25 2 . . . 6 22 . 6 24 . 32 Total Damage 1881 | . . . . 254 11 . . . 112 518 . 156 312 . 518 Kills 17 | . . . . 4 . . . . 2 6 . . 1 . 4 Allies Corrupted 2 | . . . . . . . . . . . . . 2 . . Allies Melted 1 | . . . . . . . . . . . . . . . 1 Intel | -11 -10 -10 -9 -9 -9 -8 -8 -8 -8 -8 -8 -8 -7 -7 -7 ------- Run | Yrd Mat Min Mat Min Exi Min Mat Gar Mat Gar Mat Gar Fac Was Fac Active Infowar (turns) 643 | 54 343 . . . . . . . . . . . . . 246 Seismic 397 | 54 343 . . . . . . . . . . . . . . T.N.C. 246 | . . . . . . . . . . . . . . . 246 Robot Analysis Total 3 | . . . . . . . 1 . . . . . . . 2 Derelict Logs Recovered 5 | . . 3 . 2 . . . . . . . . . . . Drone Launches . | . . . . . . . . . . . . . . . . Drone Recoveries . | . . . . . . . . . . . . . . . . Exploration | -11 -10 -10 -9 -9 -9 -8 -8 -8 -8 -8 -8 -8 -7 -7 -7 ------------- Run | Yrd Mat Min Mat Min Exi Min Mat Gar Mat Gar Mat Gar Fac Was Fac Turns Passed 40169 | 138 3223 1210 5568 2327 5705 1310 2203 2344 510 1898 6028 5353 780 40 1532 Spaces Moved 20387 | 67 1492 494 2162 888 2379 747 739 879 186 679 2389 2359 1518 136 3273 Core 8 | 3 . . . . . . . . . . . . . . 5 Treads 14433 | 64 1492 494 2162 888 2379 747 533 879 186 679 2389 1541 . . . Legs . | . . . . . . . . . . . . . . . . Wheels 1029 | . . . . . . . 206 . . . . 818 5 . . Hover . | . . . . . . . . . . . . . . . . Flight 4917 | . . . . . . . . . . . . . 1513 136 3268 Fastest Speed 21 | 50 160 240 160 240 160 160 160 240 240 240 240 120 24 24 21 Average Speed 171 | 155 181 240 223 240 217 160 218 240 240 240 240 196 24 24 31 Slowest Speed 240 | 160 240 240 240 240 240 160 240 240 240 240 240 240 135 24 200 Overloaded Moves 77 | . . . . . . . . . . . . . . . 77 Propulsion Burnouts 1 | . . . . . . . . . . . . . . . 1 Robots Hopped 40 | . . . . . . . . . . . . . 20 . 20 Potential Cave-ins . | . . . . . . . . . . . . . . . . Cave-ins Triggered . | . . . . . . . . . . . . . . . . Exploration Rate (%) 74 | 7 100 97 98 99 90 95 78 80 14 74 84 96 27 83 72 Regions Visited 15 Branch Regions 4 Pre-discovered Areas 5 | . 1 2 1 . 1 . . . . . . . . . . Known Exits Taken 6 | . . 1 1 . . 1 1 . 1 . 1 . . . . Unknown Exits Taken 4 | 1 1 . . 1 1 . . . . . . . . . . Scrap Searched 4 | . . 1 . 1 . 2 . . . . . . . . . Spaces Dug 85 | . . 15 . . 29 . . 1 2 . 1 . 7 . 30 Terrain Destroyed 341 | . 144 57 . 28 36 18 1 3 2 . 14 1 7 . 30 Melee 41 | . . . . . . . . 1 2 . 1 . 7 . 30 Projectile 17 | . . . . . . . 1 2 . . 13 1 . . . AOE 283 | . 144 57 . 28 36 18 . . . . . . . . . Terrain Rammed . | . . . . . . . . . . . . . . . . Walls Destroyed . | . . . . . . . . . . . . . . . . Machines Disabled . | . . . . . . . . . . . . . . . . Actions | -11 -10 -10 -9 -9 -9 -8 -8 -8 -8 -8 -8 -8 -7 -7 -7 --------- Run | Yrd Mat Min Mat Min Exi Min Mat Gar Mat Gar Mat Gar Fac Was Fac Total 23670 | 87 1841 510 2663 1039 2742 794 1112 1017 227 841 2585 2797 1704 142 3569 Wait 1406 | . 181 3 267 117 161 2 201 21 5 22 81 172 49 . 124 Move 20298 | 66 1491 493 2161 887 2378 746 739 878 186 678 2388 2358 1480 135 3234 Hop 37 | . . . . . . . . . . . . . 18 . 19 Pick Up 189 | 8 25 3 24 2 41 2 19 8 1 18 13 15 2 1 7 Fast Attach 67 | 7 1 1 7 1 2 1 8 3 2 3 2 15 4 2 8 Attach 56 | . 2 . 3 . 9 1 6 4 2 10 3 6 6 . 4 Detach 8 | . . . . . . . . . . 2 . 5 . . 1 Swap 227 | . 24 1 27 6 15 3 23 24 8 16 18 28 16 1 17 Drop 245 | . 21 4 28 3 39 3 26 14 7 19 15 31 18 3 14 Fire 750 | 6 95 5 111 19 84 36 84 32 12 55 51 98 13 . 49 Melee 152 | . . . . . 12 . . 21 2 12 1 31 17 . 56 Ram . | . . . . . . . . . . . . . . . . Kick . | . . . . . . . . . . . . . . . . Crush 23 | . 1 . 8 4 . . 6 . 2 . 1 1 . . . Escape Stasis 74 | . . . . . . . . 12 . 6 . 20 . . 36 Rewire . | . . . . . . . . . . . . . . . . Trap 28 | . . . 27 . 1 . . . . . . . . . . Miscellaneous 110 | . . . . . . . . . . . 12 17 81 . . Route ------- -11/Scrapyard -10/Materials (discovered 5 exits: *Mat x3 / *Min / *Sub) -10/Mines (discovered 3 exits: *Mat x2 / Sub) -9/Materials (discovered 5 exits: *Mat x3 / *Min x2) -9/Mines (discovered 4 exits: *Mat x2 / *Exi / [*Zio]) -9/Exiles -8/Mines (discovered 2 exits: *Mat x2) -8/Materials (discovered 5 exits: *Fac x3 / *Sto / Gar) -8/Garrison (discovered 4 exits: *Mat x4) -8/Materials (discovered 6 exits: Fac x3 / *Sto x2 / Gar) -8/Garrison (discovered 4 exits: *Fac x3 / *Mat) -8/Materials (discovered 5 exits: *Fac x3 / *Sto / Gar) -8/Garrison (discovered 3 exits: *Fac x3) -7/Factory -7/Waste -7/Factory (discovered 8 exits: [*Fac x3] / *Low x2 / Gar / Gar / Gar) History --------- Turn | Location | Event 14 | -11/Scrapyard | Discovered new exit (range 16) 139 | -11/Scrapyard | Entered Materials 306 | -10/Materials | Build established: Mutant 536 | -10/Materials | Discovered new exit (range 11) 680 | -10/Materials | Discovered new exit (range 8) 963 | -10/Materials | Discovered new exit (range 11) 1199 | -10/Materials | Repaired Med. Armor Plating 1207 | -10/Materials | Discovered new exit (range 11) 1341 | -10/Materials | Identified exit to Materials 1341 | -10/Materials | Learned location of 2 exits from Materials 1373 | -10/Materials | Learned location of 2 exits from Mines 1395 | -10/Materials | Learned location of 2 exits from Subcaves 1408 | -10/Materials | Learned 2 Mines zone layouts 1411 | -10/Materials | Loaded intel: 2 recycling unit locations 1412 | -10/Materials | Learned 2 Storage zone layouts 1413 | -10/Materials | Learned Storage trap positions 1414 | -10/Materials | Loaded intel: 1 repair station location 1418 | -10/Materials | Learned location of 1 exit from Storage 3362 | -10/Materials | Entered Mines 3363 | -10/Mines | Identified exit to Subcaves 3412 | -10/Mines | Met a Derelict shopkeep closing up shop 3699 | -10/Mines | Learned Materials terminal intel 4073 | -10/Mines | Received a Rocket Launcher from a helpful Derelict 4161 | -10/Mines | Discovered exit to Materials (range 5) 4209 | -10/Mines | Learned 2 Materials zone layouts 4416 | -10/Mines | Learned location of Zion (-7) 4441 | -10/Mines | Learned location of Storage (-8) 4572 | -10/Mines | Entered Materials 4572 | -9/Materials | Evolved 2 slots: Propulsion x1, Weapon x1 4573 | -9/Materials | Identified exit to Materials 4575 | -9/Materials | Loaded intel: 12 terminal locations 4872 | -9/Materials | Build established: Bomber 5052 | -9/Materials | Identified exit to Mines 5701 | -9/Materials | Build established: Scavenger-Bomber 5906 | -9/Materials | Discovered exit to Materials (range 14) 6591 | -9/Materials | Build established: Bomber 7225 | -9/Materials | Build established: Scavenger-Bomber 7386 | -9/Materials | Central database locked down 7446 | -9/Materials | Learned location of 2 exits from Materials 7498 | -9/Materials | Learned Storage stockpile data 7538 | -9/Materials | Learned Materials terminal intel 7570 | -9/Materials | Learned location of 2 exits from Materials 7590 | -9/Materials | Learned location of 1 exit from Recycling 7650 | -9/Materials | Learned location of 3 exits from Materials 8148 | -9/Materials | Build established: Scavenger-Tank 9028 | -9/Materials | Repaired Imp. Assault Rifle 9352 | -9/Materials | Repaired Med. Armor Plating 9387 | -9/Materials | Repaired Hvy. Assault Rifle 9642 | -9/Materials | Build established: Tank 10140 | -9/Materials | Entered Mines 10153 | -9/Mines | Assembled infested the area 10369 | -9/Mines | Learned 2 Materials zone layouts 10418 | -9/Mines | Received a Mining Laser from a helpful Derelict 10420 | -9/Mines | Discovered exit to Materials (range 12) 10792 | -9/Mines | Found a hidden stash of uninstalled traps 11008 | -9/Mines | Deemed a non-threat by the Exiles lab entrance 11011 | -9/Mines | Discovered new exit (range 5) 11227 | -9/Mines | Discovered exit to Materials (range 5) 11268 | -9/Mines | Assisted by bots powering up and referring to "LRC-V3" 11356 | -9/Mines | Joined a pair of Derelicts in attacking an 0b10 outpost 11370 | -9/Mines | Learned Materials emergency access door positions 11578 | -9/Mines | A Derelict revealed a hidden shortcut to a safe place 12467 | -9/Mines | Entered Exiles 12467 | -9/Exiles | Accompanied by 3 allies 12527 | -9/Exiles | Met 8R-AWN 12566 | -9/Exiles | Met EX-HEX 12657 | -9/Exiles | Met EX-DEC 12751 | -9/Exiles | Met EX-BIN 12928 | -9/Exiles | Discovered new exit (range 14) 14627 | -9/Exiles | Visited The Gauntlet 14771 | -9/Exiles | Build established: Mutant 15416 | -9/Exiles | Aligned with FarCom system 15418 | -9/Exiles | Given EX-Vault access code 15476 | -9/Exiles | Opened EX-Vault 15536 | -9/Exiles | Warned to stay clear of 0b10 Research branches 16032 | -9/Exiles | Build established: Scavenger-Tank 16337 | -9/Exiles | Found Gui. Plasma Cannon 16626 | -9/Exiles | Attacked by the Exiles 16659 | -9/Exiles | Lost 3 allies 16808 | -9/Exiles | Lost 6 parts (1p3n1u1w) 16819 | -9/Exiles | Core integrity fell below 50% 16819 | -9/Exiles | Destroyed 8R-AWN 17200 | -9/Exiles | Destroyed EX-DEC 17216 | -9/Exiles | Destroyed EX-HEX 17218 | -9/Exiles | Build established: Gunner 17236 | -9/Exiles | Destroyed EX-BIN 17309 | -9/Exiles | Found System Purifier 17320 | -9/Exiles | Found AWS/EX-DEC 17326 | -9/Exiles | Found Deploy-a-Sentry 17949 | -9/Exiles | Build established: Tank 18172 | -9/Exiles | Entered Mines 18640 | -8/Mines | Build established: Scavenger-Tank 18886 | -8/Mines | Discovered exit to Materials (range 3) 18950 | -8/Mines | Discovered exit to Materials (range 8) 19482 | -8/Mines | Entered Materials 19482 | -8/Materials | Evolved 2 slots: Utility x1, Weapon x1 19483 | -8/Materials | Identified exit to Storage 19484 | -8/Materials | Identified exit to Factory 19487 | -8/Materials | Loaded intel: 12 terminal locations 19773 | -8/Materials | Garrison activated, responded to threat 19846 | -8/Materials | Destroyed 13 combat bots 19846 | -8/Materials | Lost 4 parts (3n1w) 21337 | -8/Materials | Repaired Lgt. Neutrino Core 21406 | -8/Materials | Repaired Cmb. Antigrav System 21507 | -8/Materials | Garrison activated, responded to threat 21685 | -8/Materials | Identified exit to Garrison 21685 | -8/Materials | Entered Garrison 21695 | -8/Garrison | Triggered checkpoint 21764 | -8/Garrison | Discovered new exit (range 5) 21881 | -8/Garrison | Triggered checkpoint 21929 | -8/Garrison | Garrison Relay disabled 22077 | -8/Garrison | Triggered checkpoint 22103 | -8/Garrison | Triggered checkpoint 22179 | -8/Garrison | Discovered new exit (range 13) 22267 | -8/Garrison | Triggered checkpoint 22298 | -8/Garrison | Build established: Scavenger-Gunner 22323 | -8/Garrison | Garrison Relay disabled 22547 | -8/Garrison | Discovered new exit (range 15) 22547 | -8/Garrison | Discovered new exit (range 41) 22547 | -8/Garrison | Discovered new exit (range 70) 22547 | -8/Garrison | Discovered new exit (range 64) 22635 | -8/Garrison | Garrison Relay disabled 22776 | -8/Garrison | Triggered checkpoint 22894 | -8/Garrison | Installed Relay Interface Framework 22963 | -8/Garrison | Triggered checkpoint 23211 | -8/Garrison | Garrison Relay disabled 23435 | -8/Garrison | Build established: Scavenger-Tank 23497 | -8/Garrison | Expanded RIF knowledge: Threat Obfuscation 24029 | -8/Garrison | Entered Materials 24482 | -8/Materials | Identified exit to Garrison 24487 | -8/Materials | Discovered exit to Storage (range 5) 24502 | -8/Materials | Garrison activated, responded to threat 24539 | -8/Materials | Entered Garrison 24539 | -8/Garrison | Accompanied by 1 ally 24685 | -8/Garrison | Triggered checkpoint 24756 | -8/Garrison | Rescued a captive Derelict 24764 | -8/Garrison | Build established: Scavenger-Gunner 24824 | -8/Garrison | Discovered exit to Factory (range 84) 24824 | -8/Garrison | Discovered exit to Factory (range 36) 24824 | -8/Garrison | Discovered exit to Factory (range 61) 24824 | -8/Garrison | Discovered new exit (range 70) 24893 | -8/Garrison | Triggered checkpoint 24912 | -8/Garrison | Triggered checkpoint 24952 | -8/Garrison | Triggered checkpoint 25282 | -8/Garrison | Expanded RIF knowledge: Autooverride 26166 | -8/Garrison | Triggered checkpoint 26207 | -8/Garrison | Triggered checkpoint 26225 | -8/Garrison | Core integrity fell below 50% 26437 | -8/Garrison | Entered Materials 26437 | -8/Materials | Accompanied by 1 ally 26472 | -8/Materials | Garrison activated, responded to threat 26591 | -8/Materials | Discovered exit to Factory (range 10) 27117 | -8/Materials | Met 7R-MNS 29594 | -8/Materials | Discovered exit to Factory (range 16) 29675 | -8/Materials | Build established: Scavenger-Tank 30027 | -8/Materials | Build established: Commander-Tank 30402 | -8/Materials | Discovered exit to Storage (range 15) 31014 | -8/Materials | Identified exit to Garrison 31043 | -8/Materials | Discovered exit to Factory (range 9) 32465 | -8/Materials | Entered Garrison 32465 | -8/Garrison | Accompanied by 9 allies 32509 | -8/Garrison | Triggered checkpoint 32701 | -8/Garrison | Rescued a captive Derelict 32758 | -8/Garrison | Lost 5 allies 32995 | -8/Garrison | Expanded RIF knowledge: Patrol Navigation 33020 | -8/Garrison | Build established: Tank 33093 | -8/Garrison | P-60 Hacker assimilated allied IF-X6C(g) 33191 | -8/Garrison | Garrison Relay disabled 33757 | -8/Garrison | Triggered checkpoint 33894 | -8/Garrison | Build established: Commander-Tank 33911 | -8/Garrison | Discovered exit to Factory (range 11) 34024 | -8/Garrison | Triggered checkpoint 34070 | -8/Garrison | Garrison Relay disabled 34303 | -8/Garrison | Triggered checkpoint 34691 | -8/Garrison | Triggered checkpoint 34823 | -8/Garrison | Discovered exit to Factory (range 13) 34928 | -8/Garrison | Expanded RIF knowledge: Hotswap 35021 | -8/Garrison | Phase Generator disabled 35107 | -8/Garrison | Triggered checkpoint 35143 | -8/Garrison | Triggered checkpoint 35496 | -8/Garrison | Discovered exit to Factory (range 14) 35557 | -8/Garrison | Triggered checkpoint 35910 | -8/Garrison | Garrison Relay disabled 36665 | -8/Garrison | Build established: Commander-Mutant 36846 | -8/Garrison | Garrison Relay disabled 37000 | -8/Garrison | Build established: Scavenger-Mutant 37818 | -8/Garrison | Entered Factory 37818 | -7/Factory | Accompanied by 5 allies 37818 | -7/Factory | Evolved 2 slots: Propulsion x1, Utility x1 38134 | -7/Factory | Build established: Commander-Sprinter 38218 | -7/Factory | First assault squad dispatched 38380 | -7/Factory | Lost 3 allies 38433 | -7/Factory | Lost 3 allies 38544 | -7/Factory | Discovered new exit (range 8) 38556 | -7/Factory | Allied Derelicts emerged from ambush trap array 38598 | -7/Factory | Manually triggered Chute Trap 38598 | -7/Factory | Sucked down chute 38598 | -7/Factory | Entered Waste 38600 | -7/Waste | Spotted C-40 Crusher 38609 | -7/Waste | Spotted C-40 Crusher 38613 | -7/Waste | EMP discharged 38613 | -7/Waste | System corruption reached 10% 38615 | -7/Waste | Spotted C-40 Crusher 38617 | -7/Waste | Spotted C-40 Crusher 38623 | -7/Waste | Spotted C-40 Crusher 38631 | -7/Waste | Spotted C-40 Crusher 38634 | -7/Waste | Discovered new exit (range 14) 38638 | -7/Waste | Entered Factory 38642 | -7/Factory | Identified exit to Garrison 38934 | -7/Factory | Build established: Hacker-Gunner 39017 | -7/Factory | Discovered new exit (range 15) 39263 | -7/Factory | Repaired Lgt. Fission Core 39282 | -7/Factory | Discovered new exit (range 10) 39286 | -7/Factory | Identified exit to Garrison 39462 | -7/Factory | Discovered new exit (range 5) 39547 | -7/Factory | Build established: Hacker-Sprinter 39670 | -7/Factory | Identified exit to Lower Caves 39675 | -7/Factory | Identified exit to Garrison 39867 | -7/Factory | Discovered new exit (range 16) 39967 | -7/Factory | Cargo convoy interrupted 40146 | -7/Factory | Lost 5 parts (1p2n2w) 40170 | -7/Factory | Self-destructed Last Messages --------------- 40102_ X-57 Shotgunner destroyed. 40104_ Penetrated by Slug. 40107_ Slug penetrates Wall. 40108_ Powered Hammer follow-up attack on P-60 Hacker. 40110_ Penetrated by Slug. 40110_ Transporter 4a destroyed. 40111_ Penetrated by Slug. 40115_ Imp. Cesium-ion Thruster destroyed. 40115_ Slug penetrates P-60 Hacker. 40125_ Jacked A-02 Transporter... >>drop_inventory Dumping inventory... 6x Mni. Assault Cannon 40127_ Acquired Mni. Assault Cannon. 40129_ Dropped Powered Hammer. 40130_ Acquired Mni. Assault Cannon. 40132_ P-60 Hacker shuts down. 40138_ Acquired 183 matter. 40140_ W-25 Informer sends out distress signal. 40167_ K-01 Serf destroyed. Map ----- +----------------------------------------------------+ | ???????????################# | | ?????????????????????????########## a ########## | | ?????????????????????????# # ########## | | ?????????????????????????# """" # # | | ?????????????????????????# """" + # | | ?????????????????????????# """" # # """ """ | | ?????????????????????????# """" # #?""" """ | | ?????????????????????????# """" # #?""" """ | | ?????????????????????????# """" !# # | | ?????????????????????????# # # """ """ | | ?????????????????????????# [ # # """ """ | | ?????????????????????????#######+## + """ """ | | ???????????????????????????????# # | | ???????????????????????????????# ########## | | ????????????????????????########+## #? ]# | | ????????????????????????# [ # #? = # | | ????????????????????????# #m # # | | ????????????????????????# # # # | | ????????????????????????# / + """ # | | ????????????????????????# """ """ # # """ # | | ????????????????????????# """ """ # # """ # | | ????????????????????????# """ """ # #? # | | ????????????????????????? # #?##### | | ?????????????###+################## ########## | | ?????????????# ^ | | ?????????? @ w | | ?????????? | | ?????????? o ! ^ | | ???????????### Y p*% | | ?????????????####+###################+############ | | ????????????????????????????????# ## | | ????????????????????????????????# ## | | ????????????????????????????????# """ """ #" | | ????????????????????????????????# """ """ ## | | ????????????????????????????????# """ """ ## | | ????????????????????????????????# ## | | ????????????????????????????????# """ """ ## | | ????????????????????????????????# """ """ ## | | ????????????????????????????????# """ """ ## | | ??????????????]?????????????????# ## | | ????????????????????????????##??# ## | | ???????????????#############"#??# = ##### | | ???????????????# #???##############???? | | ???????????????# """ """ #????????????????????? | | ???????????????# """ """ #????????????????????? | | ???????????????# """ """ #????????????????????? | | ???????????????# #????????????????????? | | ???????????????# """ """ #????????????????????? | | ???????????????# """ """ #????????????????????? | | ???????????????# """ """ #????????????????????? | +----------------------------------------------------+ Best States ------------- Heat Dissipation 59 Energy Generation 19 Energy Capacity 310 Matter Stores 500 Matter Capacity 500 Sight Range 16 Terrain Scan Density 10 Armor Coverage 225 Phase Shifting 5 Evasion (%) 73 Recoil Reduction 3 Offensive Hacking 12 Defensive Hacking 14 Relay Coupler Types 1 Relay Coupler Value 33 Item Schematics ----------------- Arm. Wheel | -9/Materials | Hacked Lgt. Treads | -9/Materials | Hacked Imp. Flight Unit | -9/Materials | Scanalyzed Lgt. Assault Rifle | -9/Materials | Hacked Cmb. Antigrav System | -8/Materials | Scanalyzed Imp. Cesium-ion Thruster | -8/Materials | Scanalyzed Coil Gun | -7/Factory | Hacked Centrium Wheel | -7/Factory | Scanalyzed Adv. System Restoration Module | -7/Factory | Downloaded Transport Network Coupler | -7/Factory | Scanalyzed Enh. Autogun | -7/Factory | Hacked Robot Schematics ------------------ M-13 Machinist | -10/Materials | Hacked S-10 Pest | -10/Materials | Hacked P-60 Hacker | -7/Factory | Hacked Y-54 Guardian | -7/Factory | Downloaded Fabricated ------------ Nothing Repaired ---------- Med. Armor Plating | 31% | -10/Materials Imp. Assault Rifle | 30% | -9/Materials Med. Armor Plating | 39% | -9/Materials Hvy. Assault Rifle | 24% | -9/Materials Lgt. Neutrino Core | 53% | -8/Materials Cmb. Antigrav System | 79% | -8/Materials Lgt. Fission Core | 10% | -7/Factory Alien Tech Used ----------------- None Achievements -------------- None Challenges ------------ None Game ------ Seed ChainGreatStreamer Manual? 0 Play Time 03:59:24 Cumulative 963.9 hours Start 2025.06.23 @ 00:46:44 End 2025.06.24 @ 23:42:31 Sessions 4 Manual Loads 0 Difficulty Rogue Special Mode None Game No. 494 Rogue 494 Adventurer 0 Explorer 0 Win Type - Total 23 Types 10/4/3/0/1/1/2/2/0/0 Lore% 85 Gallery% 87 Achievement% 83 Wizard Run 0 Options --------- Layout 0 ASCII 0 Keyboard 0 Movement Numpad Keybinds 0 Fullscreen 2 Font 24/Smallcaps Map View 76x50 Zoom Use 0% Tactical HUD 1 Map Filters NONE Filters SHIFT_HUE(315) Steam 1 RUN: ff3a1322-596f-4daf-8fc2-570110857de0